[Event "GrandPrix_30.05"]
[Site "Chess.com"]
[Date "2020.05.30"]
[Round "4"]
[White "Evgeny81"]
[Black "Durarbayli"]
[Result "0-1"]
[WhiteElo "2400"]
[BlackElo "2574"]
[TimeControl "600+2"]
[EndTime "9:55:26 PDT"]
[Termination "Durarbayli won on time"]

1. d4 {[%clk 0:10:01.9]} 1... Nf6 {[%clk 0:10:00.7]} 2. c4 {[%clk 0:10:02.6]}
2... e6 {[%clk 0:10:01.8]} 3. Nc3 {[%clk 0:10:01.6]} 3... Bb4 {[%clk 0:10:02.2]}
4. e3 {[%clk 0:10:02.8]} 4... O-O {[%clk 0:09:59.7]} 5. Nf3 {[%clk 0:10:02.8]}
5... d5 {[%clk 0:09:51.8]} 6. Bd3 {[%clk 0:10:02.3]} 6... c5 {[%clk 0:09:52.7]}
7. cxd5 {[%clk 0:10:01.6]} 7... Nxd5 {[%clk 0:09:38.8]} 8. O-O {[%clk
0:10:01.4]} 8... cxd4 {[%clk 0:09:00.8]} 9. exd4 {[%clk 0:09:57.7]} 9... h6
{[%clk 0:09:01.3]} 10. Bc2 {[%clk 0:09:42.7]} 10... Nd7 {[%clk 0:08:27.6]} 11.
Nxd5 {[%clk 0:09:12.2]} 11... exd5 {[%clk 0:08:25.2]} 12. Ne5 {[%clk 0:08:57.6]}
12... Re8 {[%clk 0:05:58.9]} 13. Qd3 {[%clk 0:07:40.4]} 13... Nf8 {[%clk
0:05:38.8]} 14. Bf4 {[%clk 0:04:23.5]} 14... Be6 {[%clk 0:04:51.7]} 15. Ba4
{[%clk 0:03:50.7]} 15... Re7 {[%clk 0:04:32.5]} 16. Qg3 {[%clk 0:03:38.6]} 16...
Qa5 {[%clk 0:03:15.8]} 17. Bb3 {[%clk 0:02:11]} 17... Bd2 {[%clk 0:03:06.2]} 18.
Rad1 {[%clk 0:01:41.6]} 18... Bxf4 {[%clk 0:03:03.9]} 19. Qxf4 {[%clk
0:01:42.4]} 19... Qb6 {[%clk 0:02:47.1]} 20. Rfe1 {[%clk 0:01:29.7]} 20... a5
{[%clk 0:02:30.9]} 21. Nd3 {[%clk 0:01:21]} 21... Ng6 {[%clk 0:02:13.4]} 22. Qf3
{[%clk 0:01:04]} 22... Qxd4 {[%clk 0:01:59.1]} 23. h3 {[%clk 0:00:47.1]} 23...
Rd8 {[%clk 0:01:22.8]} 24. Qg3 {[%clk 0:00:44.6]} 24... Qf6 {[%clk 0:01:14.6]}
25. Nc5 {[%clk 0:00:28]} 25... b6 {[%clk 0:01:12.6]} 26. Nd3 {[%clk 0:00:22]}
26... Bf5 {[%clk 0:01:03.2]} 27. Rxe7 {[%clk 0:00:21.3]} 27... Qxe7 {[%clk
0:01:05.1]} 28. Re1 {[%clk 0:00:15.5]} 28... Be6 {[%clk 0:01:02.3]} 29. Ne5
{[%clk 0:00:14]} 29... Nxe5 {[%clk 0:01:02]} 30. Qxe5 {[%clk 0:00:15.3]} 30...
Qd6 {[%clk 0:00:53.5]} 31. Qd4 {[%clk 0:00:12.4]} 31... Qc5 {[%clk 0:00:51.1]}
32. Qe5 {[%clk 0:00:12.1]} 32... Kf8 {[%clk 0:00:41.3]} 33. h4 {[%clk
0:00:07.7]} 33... Qd6 {[%clk 0:00:17.7]} 34. Qd4 {[%clk 0:00:07.8]} 34... Qc5
{[%clk 0:00:13.7]} 35. Qd3 {[%clk 0:00:08.9]} 35... Kg8 {[%clk 0:00:12.4]} 36.
Bc2 {[%clk 0:00:09.1]} 36... Qb4 {[%clk 0:00:10.1]} 37. Qh7+ {[%clk 0:00:08.6]}
37... Kf8 {[%clk 0:00:11.1]} 38. Re3 {[%clk 0:00:06.6]} 38... Qxb2 {[%clk
0:00:10.7]} 39. Rf3 {[%clk 0:00:05.2]} 39... Ke7 {[%clk 0:00:10.8]} 40. Qd3
{[%clk 0:00:04.4]} 40... Qa1+ {[%clk 0:00:11.4]} 41. Kh2 {[%clk 0:00:04.8]}
41... Qe5+ {[%clk 0:00:12.7]} 42. g3 {[%clk 0:00:06]} 42... d4 {[%clk
0:00:14.1]} 43. Rf4 {[%clk 0:00:04.7]} 43... Qc5 {[%clk 0:00:13.3]} 44. Qe4
{[%clk 0:00:04.6]} 44... Qd5 {[%clk 0:00:11.4]} 45. Qd3 {[%clk 0:00:05.5]} 45...
Qxa2 {[%clk 0:00:10.3]} 46. Qe4 {[%clk 0:00:04.1]} 46... Qd5 {[%clk 0:00:10.6]}
47. Qd3 {[%clk 0:00:05.4]} 47... Qc4 {[%clk 0:00:11.6]} 48. Qe4 {[%clk
0:00:06.1]} 48... d3 {[%clk 0:00:09.3]} 49. Qb7+ {[%clk 0:00:04.2]} 49... Rd7
{[%clk 0:00:10.5]} 0-1

[Event "GrandPrix_30.05"]
[Site "Chess.com"]
[Date "2020.05.30"]
[Round "4"]
[White "Paulz64"]
[Black "ninullia"]
[Result "1/2-1/2"]
[WhiteElo "2192"]
[BlackElo "2294"]
[TimeControl "600+2"]
[EndTime "9:55:26 PDT"]
[Termination "Game drawn by repetition"]

1. d4 {[%clk 0:10:01.9]} 1... d5 {[%clk 0:10:00.5]} 2. c4 {[%clk 0:10:02.3]}
2... e6 {[%clk 0:10:01.3]} 3. Nc3 {[%clk 0:10:02.3]} 3... Nf6 {[%clk 0:10:02.8]}
4. Bg5 {[%clk 0:10:02.6]} 4... Bb4 {[%clk 0:10:02.7]} 5. e3 {[%clk 0:09:59.3]}
5... O-O {[%clk 0:09:59.7]} 6. Nf3 {[%clk 0:09:53.4]} 6... b6 {[%clk 0:09:26.6]}
7. cxd5 {[%clk 0:09:31.5]} 7... Qxd5 {[%clk 0:09:14.6]} 8. Bxf6 {[%clk
0:09:11.7]} 8... gxf6 {[%clk 0:09:16.5]} 9. Bd3 {[%clk 0:08:58.3]} 9... Bb7
{[%clk 0:09:02.9]} 10. O-O {[%clk 0:08:45.3]} 10... Qh5 {[%clk 0:09:01.1]} 11.
Be4 {[%clk 0:08:13.7]} 11... c6 {[%clk 0:08:58.7]} 12. Nd2 {[%clk 0:07:02.7]}
12... Qh6 {[%clk 0:08:44.1]} 13. Rc1 {[%clk 0:06:41.8]} 13... f5 {[%clk
0:08:32.8]} 14. Bf3 {[%clk 0:06:38.2]} 14... Nd7 {[%clk 0:08:32.6]} 15. Qa4
{[%clk 0:05:06.7]} 15... Bd6 {[%clk 0:08:25.9]} 16. g3 {[%clk 0:05:04]} 16... a6
{[%clk 0:07:04.2]} 17. Qb3 {[%clk 0:04:12.2]} 17... Rab8 {[%clk 0:06:54]} 18.
Rfd1 {[%clk 0:03:05.4]} 18... Kh8 {[%clk 0:06:35.7]} 19. Nc4 {[%clk 0:02:52]}
19... Bc7 {[%clk 0:06:33]} 20. Bg2 {[%clk 0:02:40.3]} 20... Ba8 {[%clk
0:06:09.8]} 21. Ne2 {[%clk 0:02:22.2]} 21... Nf6 {[%clk 0:05:54.9]} 22. Ne5
{[%clk 0:02:14.3]} 22... Bxe5 {[%clk 0:05:43]} 23. dxe5 {[%clk 0:02:14.9]} 23...
Ng4 {[%clk 0:05:44.6]} 24. h3 {[%clk 0:02:13.4]} 24... Nxe5 {[%clk 0:05:42.6]}
25. Qc3 {[%clk 0:02:13.2]} 25... Qg7 {[%clk 0:05:40.1]} 26. Nf4 {[%clk
0:02:14.4]} 26... Ng6 {[%clk 0:05:07.8]} 27. Qxg7+ {[%clk 0:02:06.6]} 27... Kxg7
{[%clk 0:05:09.7]} 28. Bxc6 {[%clk 0:02:00.1]} 28... Nxf4 {[%clk 0:04:47.8]} 29.
exf4 {[%clk 0:02:00.4]} 29... Bxc6 {[%clk 0:04:39.9]} 30. Rxc6 {[%clk
0:01:59.8]} 30... Rfc8 {[%clk 0:04:41.5]} 31. Rdd6 {[%clk 0:01:58.8]} 31... Rxc6
{[%clk 0:04:39]} 32. Rxc6 {[%clk 0:02:00]} 32... Kf6 {[%clk 0:04:37.8]} 33. Kg2
{[%clk 0:01:55.5]} 33... a5 {[%clk 0:04:29.6]} 34. Kf3 {[%clk 0:01:53.9]} 34...
Rb7 {[%clk 0:04:28.2]} 35. g4 {[%clk 0:01:51.8]} 35... fxg4+ {[%clk 0:04:26.7]}
36. hxg4 {[%clk 0:01:53.2]} 36... h6 {[%clk 0:04:18.1]} 37. Ke3 {[%clk
0:01:50.7]} 37... b5 {[%clk 0:04:02.9]} 38. Rc5 {[%clk 0:01:47]} 38... a4 {[%clk
0:03:56.5]} 39. Ke4 {[%clk 0:01:40.4]} 39... b4 {[%clk 0:03:54.3]} 40. Ke3
{[%clk 0:01:32.9]} 40... Rb8 {[%clk 0:03:40.5]} 41. Rc4 {[%clk 0:01:25.2]} 41...
Rb5 {[%clk 0:03:41.1]} 42. Ke4 {[%clk 0:01:18.5]} 42... Kg6 {[%clk 0:03:08.3]}
43. f3 {[%clk 0:01:01.5]} 43... h5 {[%clk 0:02:35.6]} 44. gxh5+ {[%clk
0:00:52.9]} 44... Kxh5 {[%clk 0:02:37.5]} 45. Rc7 {[%clk 0:00:50.9]} 45... Kg6
{[%clk 0:02:36.1]} 46. Ra7 {[%clk 0:00:44.9]} 46... b3 {[%clk 0:01:23]} 47. a3
{[%clk 0:00:41.3]} 47... Rc5 {[%clk 0:01:10.6]} 48. Rxa4 {[%clk 0:00:37.2]}
48... Rc2 {[%clk 0:01:11.7]} 49. Rb4 {[%clk 0:00:38]} 49... Rxb2 {[%clk
0:01:10.8]} 50. f5+ {[%clk 0:00:28.8]} 50... exf5+ {[%clk 0:01:04.7]} 51. Kf4
{[%clk 0:00:29.3]} 51... Rb1 {[%clk 0:00:49]} 52. Rb6+ {[%clk 0:00:25.6]} 52...
f6 {[%clk 0:00:46.8]} 53. Rb8 {[%clk 0:00:23.1]} 53... b2 {[%clk 0:00:39.7]} 54.
Rg8+ {[%clk 0:00:20.7]} 54... Kf7 {[%clk 0:00:38.5]} 55. Rb8 {[%clk 0:00:20.7]}
55... Kg6 {[%clk 0:00:18.8]} 56. Rg8+ {[%clk 0:00:21.2]} 56... Kf7 {[%clk
0:00:20]} 57. Rb8 {[%clk 0:00:21.9]} 57... Kg6 {[%clk 0:00:16.9]} 1/2-1/2

[Event "GrandPrix_30.05"]
[Site "Chess.com"]
[Date "2020.05.30"]
[Round "4"]
[White "VerdeNotte"]
[Black "mishikomchedlishvili"]
[Result "0-1"]
[WhiteElo "2656"]
[BlackElo "2554"]
[TimeControl "600+2"]
[EndTime "9:55:27 PDT"]
[Termination "mishikomchedlishvili won by resignation"]

1. e4 {[%clk 0:10:01.9]} 1... c6 {[%clk 0:09:59.3]} 2. d4 {[%clk 0:10:00.6]}
2... d5 {[%clk 0:09:59.8]} 3. e5 {[%clk 0:10:01.3]} 3... Bf5 {[%clk 0:09:59.7]}
4. h4 {[%clk 0:10:01.9]} 4... Qb6 {[%clk 0:09:58.8]} 5. Nc3 {[%clk 0:09:52.3]}
5... h6 {[%clk 0:09:52.9]} 6. h5 {[%clk 0:09:38.9]} 6... e6 {[%clk 0:09:50.9]}
7. a3 {[%clk 0:09:09.2]} 7... c5 {[%clk 0:09:30]} 8. Nf3 {[%clk 0:08:40.7]} 8...
Nc6 {[%clk 0:09:22.7]} 9. Na4 {[%clk 0:08:20]} 9... Qa5+ {[%clk 0:09:15.5]} 10.
Bd2 {[%clk 0:08:03]} 10... Qxa4 {[%clk 0:08:04.9]} 11. b3 {[%clk 0:08:02.3]}
11... Bxc2 {[%clk 0:08:05.8]} 12. Qxc2 {[%clk 0:08:00.7]} 12... Nxd4 {[%clk
0:08:06.4]} 13. Nxd4 {[%clk 0:07:54.9]} 13... Qxd4 {[%clk 0:08:07.2]} 14. Bb5+
{[%clk 0:07:50.5]} 14... Kd8 {[%clk 0:07:57]} 15. Bc3 {[%clk 0:06:39.1]} 15...
Qg4 {[%clk 0:07:20.9]} 16. g3 {[%clk 0:05:00.2]} 16... Qg5 {[%clk 0:06:08.6]}
17. Rd1 {[%clk 0:04:27.3]} 17... Kc8 {[%clk 0:05:58.7]} 18. Bd4 {[%clk
0:04:01.4]} 18... Kb8 {[%clk 0:05:32.8]} 19. Be3 {[%clk 0:03:19.6]} 19... Qd8
{[%clk 0:05:24]} 20. O-O {[%clk 0:02:40.4]} 20... a6 {[%clk 0:04:50.7]} 21. Bd3
{[%clk 0:02:41.1]} 21... Ne7 {[%clk 0:04:45.3]} 22. Bxc5 {[%clk 0:02:31.1]}
22... Nc6 {[%clk 0:04:46.2]} 23. Rfe1 {[%clk 0:01:46]} 23... Bxc5 {[%clk
0:04:41]} 24. Qxc5 {[%clk 0:01:46.6]} 24... Qe7 {[%clk 0:04:41.7]} 25. Qc1
{[%clk 0:01:42.2]} 25... Rc8 {[%clk 0:04:39.2]} 26. Qf4 {[%clk 0:01:37.3]} 26...
Rc7 {[%clk 0:04:26.9]} 27. b4 {[%clk 0:01:35.6]} 27... Qg5 {[%clk 0:04:13.9]}
28. Qxg5 {[%clk 0:01:11.8]} 28... hxg5 {[%clk 0:04:14.9]} 29. f4 {[%clk
0:01:13.5]} 29... gxf4 {[%clk 0:04:14.9]} 30. gxf4 {[%clk 0:01:15.4]} 30... Ka7
{[%clk 0:04:15.7]} 31. Kf2 {[%clk 0:01:14.9]} 31... Rh8 {[%clk 0:04:16.2]} 32.
Rh1 {[%clk 0:01:15.4]} 32... Rh6 {[%clk 0:03:45]} 33. Rdg1 {[%clk 0:01:01.9]}
33... f6 {[%clk 0:03:44.9]} 34. exf6 {[%clk 0:01:02.2]} 34... Rxf6 {[%clk
0:03:45.7]} 35. Ke3 {[%clk 0:01:00.8]} 35... e5 {[%clk 0:03:45]} 36. fxe5 {[%clk
0:00:56.8]} 36... Nxe5 {[%clk 0:03:45.6]} 37. Be2 {[%clk 0:00:52.9]} 37... Re7
{[%clk 0:03:20.4]} 38. Kd2 {[%clk 0:00:39.5]} 38... Rf2 {[%clk 0:03:11.9]} 39.
Kd1 {[%clk 0:00:37.3]} 39... Nc4 {[%clk 0:03:07.8]} 40. Bxc4 {[%clk 0:00:36.3]}
40... dxc4 {[%clk 0:03:08.8]} 41. Rh3 {[%clk 0:00:16.1]} 41... Ra2 {[%clk
0:01:06.8]} 42. Rg4 {[%clk 0:00:10.9]} 42... Rf7 {[%clk 0:00:40.1]} 43. Ke1
{[%clk 0:00:10.7]} 43... Re7+ {[%clk 0:00:18.9]} 44. Kd1 {[%clk 0:00:08.9]}
44... Rd7+ {[%clk 0:00:16.2]} 45. Ke1 {[%clk 0:00:10.1]} 45... Rc2 {[%clk
0:00:13.8]} 46. Rhg3 {[%clk 0:00:07.9]} 46... Rd5 {[%clk 0:00:14.6]} 47. Rg5
{[%clk 0:00:07.3]} 47... Rdd2 {[%clk 0:00:07.7]} 48. Rxg7 {[%clk 0:00:07.7]}
48... Rh2 {[%clk 0:00:08.2]} 49. Kd1 {[%clk 0:00:07.6]} 49... Ra2 {[%clk
0:00:08.9]} 50. Rg2 {[%clk 0:00:02.1]} 50... Raxg2 {[%clk 0:00:08.6]} 51. Rxg2
{[%clk 0:00:02.9]} 51... Rxg2 {[%clk 0:00:09.7]} 0-1

[Event "GrandPrix_30.05"]
[Site "Chess.com"]
[Date "2020.05.30"]
[Round "4"]
[White "Ave_Mariia"]
[Black "Andrei_Belozerov"]
[Result "0-1"]
[WhiteElo "2199"]
[BlackElo "2465"]
[TimeControl "600+2"]
[EndTime "9:55:31 PDT"]
[Termination "Andrei_Belozerov won by checkmate"]

1. c4 {[%clk 0:10:01.9]} 1... e5 {[%clk 0:07:13.8]} 2. Nc3 {[%clk 0:09:59.6]}
2... Bb4 {[%clk 0:07:11.5]} 3. g3 {[%clk 0:09:49.8]} 3... Bxc3 {[%clk
0:07:09.5]} 4. dxc3 {[%clk 0:09:50.9]} 4... d6 {[%clk 0:07:09.5]} 5. Bg2 {[%clk
0:09:51.8]} 5... Ne7 {[%clk 0:07:08]} 6. Nf3 {[%clk 0:09:25.4]} 6... O-O {[%clk
0:07:01.6]} 7. e4 {[%clk 0:09:08.6]} 7... Be6 {[%clk 0:06:55.3]} 8. Nd2 {[%clk
0:08:55.8]} 8... Nd7 {[%clk 0:06:50.8]} 9. O-O {[%clk 0:08:54.4]} 9... a5 {[%clk
0:06:45.8]} 10. a4 {[%clk 0:08:49.4]} 10... Nc5 {[%clk 0:06:40]} 11. b4 {[%clk
0:07:33.2]} 11... Nd3 {[%clk 0:06:37.7]} 12. Qc2 {[%clk 0:07:10.2]} 12... Nxc1
{[%clk 0:06:31.4]} 13. Rfxc1 {[%clk 0:07:10.9]} 13... axb4 {[%clk 0:06:20.1]}
14. cxb4 {[%clk 0:07:11.9]} 14... Nc6 {[%clk 0:06:21.6]} 15. Qb2 {[%clk
0:06:53]} 15... b6 {[%clk 0:05:08.4]} 16. c5 {[%clk 0:05:22.2]} 16... dxc5
{[%clk 0:05:04]} 17. bxc5 {[%clk 0:05:23.2]} 17... Qd4 {[%clk 0:05:05.6]} 18.
Qxd4 {[%clk 0:04:47.7]} 18... Nxd4 {[%clk 0:05:03.8]} 19. Bf1 {[%clk 0:04:48.9]}
19... Rfd8 {[%clk 0:04:50.2]} 20. cxb6 {[%clk 0:04:32.2]} 20... cxb6 {[%clk
0:04:48.8]} 21. Rab1 {[%clk 0:04:25.1]} 21... Rxa4 {[%clk 0:04:21.1]} 22. Rxb6
{[%clk 0:04:25.5]} 22... g6 {[%clk 0:04:00.4]} 23. Kg2 {[%clk 0:03:08.8]} 23...
Ra2 {[%clk 0:03:49.5]} 24. Nc4 {[%clk 0:02:59.5]} 24... Nc2 {[%clk 0:01:19.7]}
25. Nxe5 {[%clk 0:02:06.5]} 25... Rd2 {[%clk 0:01:07.3]} 26. Kg1 {[%clk
0:00:30.4]} 26... Nd4 {[%clk 0:01:05.5]} 27. Nd3 {[%clk 0:00:21]} 27... Kg7
{[%clk 0:00:43.2]} 28. Rbb1 {[%clk 0:00:21]} 28... Bg4 {[%clk 0:00:36.6]} 29.
Ra1 {[%clk 0:00:20.8]} 29... Bf3 {[%clk 0:00:19.7]} 30. Rxa2 {[%clk 0:00:20.8]}
30... Rxa2 {[%clk 0:00:19.7]} 31. Ne5 {[%clk 0:00:18.5]} 31... Bxe4 {[%clk
0:00:17.7]} 32. Rc4 {[%clk 0:00:18.3]} 32... Rd2 {[%clk 0:00:17]} 33. Bd3 {[%clk
0:00:12.8]} 33... Bxd3 {[%clk 0:00:12.8]} 34. Rxd4 {[%clk 0:00:13.5]} 34... Rd1+
{[%clk 0:00:14.1]} 35. Kg2 {[%clk 0:00:12.4]} 35... Bf1+ {[%clk 0:00:15.5]} 36.
Kg1 {[%clk 0:00:11.9]} 36... Rxd4 {[%clk 0:00:16.3]} 37. Kxf1 {[%clk 0:00:13.4]}
37... f6 {[%clk 0:00:15.4]} 38. Nf3 {[%clk 0:00:14.4]} 38... Rd3 {[%clk
0:00:16.1]} 39. Kg2 {[%clk 0:00:15.7]} 39... Rc3 {[%clk 0:00:16.3]} 40. Nd4
{[%clk 0:00:16.3]} 40... Kf7 {[%clk 0:00:16.4]} 41. h4 {[%clk 0:00:16.6]} 41...
Rd3 {[%clk 0:00:16.8]} 42. Nf3 {[%clk 0:00:16.8]} 42... Ke6 {[%clk 0:00:17.4]}
43. Ne1 {[%clk 0:00:14.5]} 43... Rc3 {[%clk 0:00:18.1]} 44. Nf3 {[%clk
0:00:15.1]} 44... Kd5 {[%clk 0:00:19]} 45. Nd2 {[%clk 0:00:15.3]} 45... Kd4
{[%clk 0:00:18]} 46. Kf1 {[%clk 0:00:12.9]} 46... Kd3 {[%clk 0:00:16.1]} 47. Nf3
{[%clk 0:00:13.7]} 47... Rc1+ {[%clk 0:00:14]} 48. Kg2 {[%clk 0:00:14.8]} 48...
Rd1 {[%clk 0:00:13.4]} 49. Nh2 {[%clk 0:00:14.6]} 49... Ke2 {[%clk 0:00:12.3]}
50. Ng4 {[%clk 0:00:15.1]} 50... Rf1 {[%clk 0:00:09.8]} 51. f4 {[%clk
0:00:13.5]} 51... f5 {[%clk 0:00:10.7]} 52. Nf6 {[%clk 0:00:14.4]} 52... Rf2+
{[%clk 0:00:11.5]} 53. Kh3 {[%clk 0:00:15.5]} 53... Kf1 {[%clk 0:00:11.3]} 54.
Nd5 {[%clk 0:00:13.7]} 54... Kg1 {[%clk 0:00:11.6]} 55. g4 {[%clk 0:00:13.8]}
55... Rf3# {[%clk 0:00:12.7]} 0-1

[Event "GrandPrix_30.05"]
[Site "Chess.com"]
[Date "2020.05.30"]
[Round "4"]
[White "BlackBoarder"]
[Black "caspiwins"]
[Result "1/2-1/2"]
[WhiteElo "2168"]
[BlackElo "2246"]
[TimeControl "600+2"]
[EndTime "9:55:31 PDT"]
[Termination "Game drawn - insufficient material"]

1. e4 {[%clk 0:09:58.5]} 1... d5 {[%clk 0:10:00.7]} 2. exd5 {[%clk 0:09:57.8]}
2... Qxd5 {[%clk 0:10:02.6]} 3. Nf3 {[%clk 0:09:54.6]} 3... Bg4 {[%clk 0:10:03]}
4. Nc3 {[%clk 0:09:48.2]} 4... Qe6+ {[%clk 0:09:57.8]} 5. Qe2 {[%clk 0:09:45.7]}
5... Qxe2+ {[%clk 0:09:57.7]} 6. Bxe2 {[%clk 0:09:45.9]} 6... c6 {[%clk
0:09:57.5]} 7. d3 {[%clk 0:08:58.5]} 7... Nd7 {[%clk 0:09:53.5]} 8. Bf4 {[%clk
0:08:50.8]} 8... Ngf6 {[%clk 0:08:50.6]} 9. O-O-O {[%clk 0:08:38.3]} 9... h6
{[%clk 0:08:47.3]} 10. Rhe1 {[%clk 0:08:23.8]} 10... O-O-O {[%clk 0:08:45.3]}
11. h3 {[%clk 0:08:15.5]} 11... Bh5 {[%clk 0:08:45.5]} 12. g4 {[%clk 0:08:02.9]}
12... Bg6 {[%clk 0:08:46.2]} 13. Bg3 {[%clk 0:07:51.5]} 13... e6 {[%clk
0:08:45.8]} 14. a3 {[%clk 0:07:18.3]} 14... Be7 {[%clk 0:08:30.2]} 15. Bf1
{[%clk 0:06:21.9]} 15... h5 {[%clk 0:07:59.2]} 16. g5 {[%clk 0:06:18.9]} 16...
Nh7 {[%clk 0:07:59.7]} 17. h4 {[%clk 0:06:16.6]} 17... Bf5 {[%clk 0:07:14.3]}
18. Nd4 {[%clk 0:05:25.3]} 18... g6 {[%clk 0:07:15.1]} 19. Nxf5 {[%clk 0:05:10]}
19... gxf5 {[%clk 0:07:16]} 20. Bh3 {[%clk 0:04:05.6]} 20... Bc5 {[%clk
0:06:48.7]} 21. Ne2 {[%clk 0:03:45.8]} 21... Nhf8 {[%clk 0:06:47.7]} 22. d4
{[%clk 0:03:07.8]} 22... Bb6 {[%clk 0:06:48.3]} 23. Nf4 {[%clk 0:02:43.1]} 23...
Bc7 {[%clk 0:06:48.2]} 24. c4 {[%clk 0:02:11.5]} 24... Bxf4+ {[%clk 0:06:17.4]}
25. Bxf4 {[%clk 0:02:11.9]} 25... Ng6 {[%clk 0:06:19.3]} 26. Bg3 {[%clk
0:02:13.2]} 26... f4 {[%clk 0:05:53.1]} 27. Bh2 {[%clk 0:02:12.1]} 27... c5
{[%clk 0:05:54.5]} 28. d5 {[%clk 0:01:57]} 28... e5 {[%clk 0:05:54.8]} 29. Bf5
{[%clk 0:01:03.9]} 29... Nxh4 {[%clk 0:05:35.8]} 30. Rxe5 {[%clk 0:00:59.5]}
30... Nf3 {[%clk 0:04:58.7]} 31. Bxf4 {[%clk 0:00:59.2]} 31... Nxe5 {[%clk
0:04:59.1]} 32. Bxe5 {[%clk 0:01:00.8]} 32... f6 {[%clk 0:04:21.8]} 33. Bxf6
{[%clk 0:00:48.7]} 33... Rhf8 {[%clk 0:04:22.5]} 34. Bxd8 {[%clk 0:00:22.2]}
34... Rxf5 {[%clk 0:04:21.8]} 35. Be7 {[%clk 0:00:21.2]} 35... Rxf2 {[%clk
0:04:17.2]} 36. Rh1 {[%clk 0:00:12.7]} 36... Ne5 {[%clk 0:04:16.8]} 37. Bf6
{[%clk 0:00:05]} 37... Nxc4 {[%clk 0:04:05]} 38. Rxh5 {[%clk 0:00:05.4]} 38...
Ne3 {[%clk 0:03:55.4]} 39. Bc3 {[%clk 0:00:03.7]} 39... Rg2 {[%clk 0:03:34.5]}
40. Rh8+ {[%clk 0:00:02.7]} 40... Kc7 {[%clk 0:03:28.5]} 41. Rh7+ {[%clk
0:00:04]} 41... Kb6 {[%clk 0:03:28.4]} 42. d6 {[%clk 0:00:04.1]} 42... Rg1+
{[%clk 0:03:24.6]} 43. Kd2 {[%clk 0:00:03.4]} 43... Nc4+ {[%clk 0:03:23.9]} 44.
Ke2 {[%clk 0:00:04.7]} 44... Nxd6 {[%clk 0:02:45.8]} 45. Rh6 {[%clk 0:00:05.4]}
45... Kc6 {[%clk 0:02:45.9]} 46. Be5 {[%clk 0:00:06.3]} 46... Kd5 {[%clk
0:02:43.3]} 47. Bxd6 {[%clk 0:00:06.3]} 47... Rxg5 {[%clk 0:02:44.2]} 48. Kd3
{[%clk 0:00:05.2]} 48... b5 {[%clk 0:02:30.9]} 49. Bf4 {[%clk 0:00:05.1]} 49...
c4+ {[%clk 0:02:28]} 50. Kc3 {[%clk 0:00:06]} 50... Rf5 {[%clk 0:02:29.1]} 51.
Be3 {[%clk 0:00:03.8]} 51... Rf3 {[%clk 0:02:27.4]} 52. Kd2 {[%clk 0:00:04.1]}
52... a5 {[%clk 0:02:21.2]} 53. Rb6 {[%clk 0:00:03.3]} 53... Ke4 {[%clk
0:02:15.8]} 54. Re6+ {[%clk 0:00:04.4]} 54... Kd5 {[%clk 0:02:16.9]} 55. Re8
{[%clk 0:00:05.6]} 55... b4 {[%clk 0:02:13.2]} 56. Kc2 {[%clk 0:00:06.5]} 56...
Rg3 {[%clk 0:02:08.3]} 57. Bd2 {[%clk 0:00:05.5]} 57... bxa3 {[%clk 0:01:44.8]}
58. bxa3 {[%clk 0:00:06.6]} 58... Rxa3 {[%clk 0:01:45]} 59. Kb2 {[%clk
0:00:08.1]} 59... Rb3+ {[%clk 0:01:45.6]} 60. Ka2 {[%clk 0:00:06.2]} 60... a4
{[%clk 0:01:46.9]} 61. Ra8 {[%clk 0:00:05.6]} 61... c3 {[%clk 0:01:41.3]} 62.
Bc1 {[%clk 0:00:06]} 62... Rb4 {[%clk 0:01:41.5]} 63. Ba3 {[%clk 0:00:06.2]}
63... Rc4 {[%clk 0:01:42.1]} 64. Kb1 {[%clk 0:00:06.5]} 64... c2+ {[%clk
0:01:39.1]} 65. Kc1 {[%clk 0:00:07.7]} 65... Kd4 {[%clk 0:01:40.6]} 66. Bb2+
{[%clk 0:00:08.2]} 66... Kd3 {[%clk 0:01:41.7]} 67. Rd8+ {[%clk 0:00:09]} 67...
Ke3 {[%clk 0:01:43]} 68. Rd7 {[%clk 0:00:07.2]} 68... Ke4 {[%clk 0:01:38.3]} 69.
Kd2 {[%clk 0:00:06.6]} 69... a3 {[%clk 0:01:32.2]} 70. Bxa3 {[%clk 0:00:03.3]}
70... Rd4+ {[%clk 0:01:32.5]} 71. Rxd4+ {[%clk 0:00:04.5]} 71... Kxd4 {[%clk
0:01:34.4]} 72. Kxc2 {[%clk 0:00:06.1]} 1/2-1/2